Workbook

Sheet 广州市花都区政策性农业设施大棚保险承保汇总表
A1: 广州市花都区政策性农业设施大棚保险承保汇总表
A3: 统计季度： 2020 年第 1、2 季度 | H3: 单位：亩、元
A4: 序号 | B4: 行政区域 | C4: 本季承保数量 | D4: 本季投保总金额 | E4: 本季投保总保费 | F4: 中央财政补贴 | H4: 市本级财政补贴 | J4: 区级财政补贴 | L4: 备注
F5: 补贴比例 | G5: 补贴金额 | H5: 补贴比例 | I5: 补贴金额 | J5: 补贴比例 | K5: 补贴金额
A6: 1 | B6: 花都区 | C6: 1167.16 | D6: =C6*3000 -> 3,501,480.00 | E6: =C6*180 -> 210,088.80 | F6: - | G6: - | H6: 24% | I6: =E6*0.24 -> 50,421.31 | J6: 36% | K6: =E6*0.36 -> 75,631.97 | L6: 保险标的：简易大棚
A8: 全区合计 | C8: =SUM(C6:C7) -> 1167.16 | D8: =SUM(D6:D7) -> 3,501,480.00 | E8: =SUM(E6:E7) -> 210,088.80 | F8: - | G8: - | H8: 24% | I8: =SUM(I6:I7) -> 50,421.31 | J8: 36% | K8: =SUM(K6:K7) -> 75,631.97 | L8: -

Sheet 广州市花都区政策性农业设施大棚保险承保明细表
A1: 广州市花都区政策性农业设施大棚保险承保明细表
A2: 统计日期： 2020 年第 1、2 季度 单位：亩、元
A3: 序号 | B3: 被保险人 | C3: 标的名称 | D3: 保险数量 | E3: 标的种养地点 | F3: 保险 起始日 | G3: 保险 终止日 | H3: 保险金额 | I3: 总保费 | J3: 中央补贴金额 | K3: 市级补贴金额 | L3: 区级补贴金额 | M3: 农户负担金额
A4: 1 | B4: 曹亮 | C4: 简易大棚 | D4: 37.8 | E4: 广州市花都区花东镇大东村 | F4: 2020-01-10 | G4: 2021-01-09 | H4: 113,400.00 | I4: 6,804.00 | J4: - | K4: 1,632.96 | L4: 2,449.44 | M4: 2,721.60
A5: 2 | B5: 周小平 | C5: 简易大棚 | D5: 26 | E5: 广州市花都区花东镇大塘村 | F5: 2020-01-10 | G5: 2021-01-09 | H5: 78,000.00 | I5: 4,680.00 | J5: - | K5: 1,123.20 | L5: 1,684.80 | M5: 1,872.00
A6: 3 | B6: 雷选勇 | C6: 简易大棚 | D6: 60 | E6: 广州市花都区花东镇高溪村 | F6: 2020-01-15 | G6: 2021-01-14 | H6: 180,000.00 | I6: 10,800.00 | J6: - | K6: 2,592.00 | L6: 3,888.00 | M6: 4,320.00
A7: 4 | B7: 周送平 | C7: 简易大棚 | D7: 9 | E7: 广州市花都区花东镇山下村 | F7: 2020-01-15 | G7: 2021-01-14 | H7: 27,000.00 | I7: 1,620.00 | J7: - | K7: 388.80 | L7: 583.20 | M7: 648.00
A8: 5 | B8: 李丹 | C8: 简易大棚 | D8: 37.8 | E8: 广州市花都区花东镇大东村 | F8: 2020-03-03 | G8: 2021-03-02 | H8: 113,400.00 | I8: 6,804.00 | J8: - | K8: 1,632.96 | L8: 2,449.44 | M8: 2,721.60
A9: 6 | B9: 杨日娟 | C9: 简易大棚 | D9: 24 | E9: 广州市花都区花东镇大东村 | F9: 2020-03-03 | G9: 2021-03-02 | H9: 72,000.00 | I9: 4,320.00 | J9: - | K9: 1,036.80 | L9: 1,555.20 | M9: 1,728.00
A10: 7 | B10: 周仁乔 | C10: 简易大棚 | D10: 39.6 | E10: 广州市花都区花东镇阳升村 | F10: 2020-03-03 | G10: 2021-03-02 | H10: 118,800.00 | I10: 7,128.00 | J10: - | K10: =I10*0.24 -> 1,710.72 | L10: =I10*0.36 -> 2,566.08 | M10: =I10*0.4 -> 2,851.20
A11: 8 | B11: 马莲尧 | C11: 简易大棚 | D11: 22 | E11: 广州市花都区花东镇阳升村 | F11: 2020-03-03 | G11: 2021-03-02 | H11: 66,000.00 | I11: 3,960.00 | J11: - | K11: 950.40 | L11: 1,425.60 | M11: 1,584.00
A12: 9 | B12: 周圣祥 | C12: 简易大棚 | D12: 41.5 | E12: 广州市花都区花东镇阳升村 | F12: 2020-03-04 | G12: 2021-03-03 | H12: 124,500.00 | I12: 7,470.00 | J12: - | K12: 1,792.80 | L12: 2,689.20 | M12: 2,988.00
A13: 10 | B13: 周贤书 | C13: 简易大棚 | D13: 38.6 | E13: 广州市花都区花东镇阳升村 | F13: 2020-03-04 | G13: 2021-03-03 | H13: 115,800.00 | I13: 6,948.00 | J13: - | K13: 1,667.52 | L13: 2,501.28 | M13: 2,779.20
A14: 11 | B14: 周林英 | C14: 简易大棚 | D14: 18 | E14: 广州市花都区花东镇九子村 | F14: 2020-03-04 | G14: 2021-03-03 | H14: 54,000.00 | I14: 3,240.00 | J14: - | K14: 777.60 | L14: 1,166.40 | M14: 1,296.00
A15: 12 | B15: 廖园锋 | C15: 简易大棚 | D15: 51.5 | E15: 广州市花都区花东镇农光村 | F15: 2020-03-04 | G15: 2021-03-03 | H15: 154,500.00 | I15: 9,270.00 | J15: - | K15: 2,224.80 | L15: 3,337.20 | M15: 3,708.00
A16: 13 | B16: 廖孟相 | C16: 简易大棚 | D16: 46 | E16: 广州市花都区花东镇九子村 | F16: 2020-03-04 | G16: 2021-03-03 | H16: 138,000.00 | I16: 8,280.00 | J16: - | K16: 1,987.20 | L16: 2,980.80 | M16: 3,312.00
A17: 14 | B17: 胡香月 | C17: 简易大棚 | D17: 19 | E17: 广州市花都区花东镇珠湖村 | F17: 2020-03-04 | G17: 2021-03-03 | H17: 57,000.00 | I17: 3,420.00 | J17: - | K17: 820.80 | L17: 1,231.20 | M17: 1,368.00
A18: 15 | B18: 廖誉函 | C18: 简易大棚 | D18: 43 | E18: 广州市花都区花东镇联安村 | F18: 2020-03-04 | G18: 2021-03-03 | H18: 129,000.00 | I18: 7,740.00 | J18: - | K18: 1,857.60 | L18: 2,786.40 | M18: 3,096.00
A19: 16 | B19: 黄兰翠 | C19: 简易大棚 | D19: 19 | E19: 广州市花都区花东镇联安村 | F19: 2020-03-05 | G19: 2021-03-04 | H19: 57,000.00 | I19: 3,420.00 | J19: - | K19: 820.80 | L19: 1,231.20 | M19: 1,368.00
A20: 17 | B20: 廖孔三 | C20: 简易大棚 | D20: 45 | E20: 广州市花都区花东镇联安村 | F20: 2020-03-05 | G20: 2021-03-04 | H20: 135,000.00 | I20: 8,100.00 | J20: - | K20: 1,944.00 | L20: 2,916.00 | M20: 3,240.00
A21: 18 | B21: 曹飞 | C21: 简易大棚 | D21: 41.8 | E21: 广州市花都区花东镇竹湖村 | F21: 2020-03-05 | G21: 2021-03-04 | H21: 125,400.00 | I21: 7,524.00 | J21: - | K21: 1,805.76 | L21: 2,708.64 | M21: 3,009.60
A22: 19 | B22: 陈神建 | C22: 简易大棚 | D22: 39 | E22: 广州市花都区花东镇七星村 | F22: 2020-03-05 | G22: 2021-03-04 | H22: 117,000.00 | I22: 7,020.00 | J22: - | K22: 1,684.80 | L22: 2,527.20 | M22: 2,808.00
A23: 20 | B23: 廖夺艳 | C23: 简易大棚 | D23: 35 | E23: 广州市花都区花山镇和郁村 | F23: 2020-03-05 | G23: 2021-03-04 | H23: 105,000.00 | I23: 6,300.00 | J23: - | K23: 1,512.00 | L23: 2,268.00 | M23: 2,520.00
A24: 21 | B24: 罗志高 | C24: 简易大棚 | D24: 62 | E24: 广州市花都区花山镇和郁村 | F24: 2020-03-05 | G24: 2021-03-04 | H24: 186,000.00 | I24: 11,160.00 | J24: - | K24: 2,678.40 | L24: 4,017.60 | M24: 4,464.00
A25: 22 | B25: 尹旭辉 | C25: 简易大棚 | D25: 42.5 | E25: 广州市花都区花山镇红群村 | F25: 2020-03-05 | G25: 2021-03-04 | H25: 127,500.00 | I25: 7,650.00 | J25: - | K25: 1,836.00 | L25: 2,754.00 | M25: 3,060.00
A26: 23 | B26: 李庆佳 | C26: 简易大棚 | D26: 57.6 | E26: 广州市花都区花山镇永乐村 | F26: 2020-03-05 | G26: 2021-03-04 | H26: 172,800.00 | I26: 10,368.00 | J26: - | K26: 2,488.32 | L26: 3,732.48 | M26: 4,147.20
A27: 24 | B27: 廖孔英 | C27: 简易大棚 | D27: 36.8 | E27: 广州市花都区花山镇儒林村 | F27: 2020-03-05 | G27: 2021-03-04 | H27: 110,400.00 | I27: 6,624.00 | J27: - | K27: 1,589.76 | L27: 2,384.64 | M27: 2,649.60
A28: 25 | B28: 廖小香 | C28: 简易大棚 | D28: 23 | E28: 广州市花都区花山镇紫西村 | F28: 2020-03-06 | G28: 2021-03-05 | H28: 69,000.00 | I28: 4,140.00 | J28: - | K28: 993.60 | L28: 1,490.40 | M28: 1,656.00
A29: 26 | B29: 廖利香 | C29: 简易大棚 | D29: 25 | E29: 广州市花都区花山镇紫西村 | F29: 2020-03-06 | G29: 2021-03-05 | H29: 75,000.00 | I29: 4,500.00 | J29: - | K29: 1,080.00 | L29: 1,620.00 | M29: 1,800.00
A30: 27 | B30: 廖万位 | C30: 简易大棚 | D30: 41.6 | E30: 广州市花都区花山镇紫西村 | F30: 2020-03-10 | G30: 2021-03-09 | H30: 124,800.00 | I30: 7,488.00 | J30: - | K30: 1,797.12 | L30: 2,695.68 | M30: 2,995.20
A31: 28 | B31: 廖荣朱 | C31: 简易大棚 | D31: 67 | E31: 广州市花都区花山镇紫西村 | F31: 2020-03-10 | G31: 2021-03-09 | H31: 201,000.00 | I31: 12,060.00 | J31: - | K31: 2,894.40 | L31: 4,341.60 | M31: 4,824.00
A32: 29 | B32: 廖丽美 | C32: 简易大棚 | D32: 21 | E32: 广州市花都区花山镇紫西村 | F32: 2020-03-10 | G32: 2021-03-09 | H32: 63,000.00 | I32: 3,780.00 | J32: - | K32: 907.20 | L32: 1,360.80 | M32: 1,512.00
A33: 30 | B33: 廖贱荣 | C33: 简易大棚 | D33: 15 | E33: 广州市花都区花山镇紫西村 | F33: 2020-03-10 | G33: 2021-03-09 | H33: 45,000.00 | I33: 2,700.00 | J33: - | K33: 648.00 | L33: 972.00 | M33: 1,080.00
A34: 31 | B34: 广州市朝辉农业发展有限公司 | C34: 简易大棚 | D34: 51.3 | E34: 广州市花都区花山镇南村 | F34: 2020-04-08 | G34: 2021-04-07 | H34: 153,900.00 | I34: 9,234.00 | J34: - | K34: 2,216.16 | L34: 3,324.24 | M34: 3,693.60
A35: 32 | B35: 罗胜勇 | C35: 简易大棚 | D35: 8.84 | E35: 广州市花都区炭步镇塱头村 | F35: 2020-04-29 | G35: 2021-04-28 | H35: 26,520.00 | I35: 1,591.20 | J35: - | K35: 381.89 | L35: 572.83 | M35: 636.48
A36: 33 | B36: 周飞涛 | C36: 简易大棚 | D36: 15 | E36: 广州市花都区花东镇山下村 | F36: 2020-05-16 | G36: 2021-05-15 | H36: 45,000.00 | I36: 2,700.00 | J36: - | K36: 648.00 | L36: 972.00 | M36: 1,080.00
A37: 34 | B37: 吴延平 | C37: 简易大棚 | D37: 6.92 | E37: 广州市花都区炭步镇塱头村 | F37: 2020-05-21 | G37: 2021-05-20 | H37: 20,760.00 | I37: 1,245.60 | J37: - | K37: 298.94 | L37: 448.42 | M37: 498.24
A38: 合计 | D38: =SUM(D4:D37) -> 1167.16 | E38: - | H38: =SUM(H4:H37) -> 3,501,480.00 | I38: =SUM(I4:I37) -> 210,088.80 | J38: - | K38: =SUM(K4:K37) -> 50,421.31 | L38: =SUM(L4:L37) -> 75,631.97 | M38: =SUM(M4:M37) -> 84,035.52
